[Event "Titled Tuesday Blitz November 9 2021"]
[White "Hjartarson, Johann"]
[Black "Grachev, Boris"]
[WhiteFideId "2300044"]
[BlackFideId "4129199"]
[WhiteElo "2502"]
[BlackElo "2555"]
[Result "1/2-1/2"]
[Round "07"]
[TimeControl "180+1"]
[Date "2021.11.09"]
[WhiteClock "0:00:27"]
[BlackClock "0:00:04"]

1. e4 {[%clk 0:03:00]}  c5 {[%clk 0:03:00]} 2. Nf3 {[%clk 0:03:00]}  e6 {[%clk 0:03:00]} 3. b3 {[%clk 0:02:59]}  b6 {[%clk 0:03:00]} 4. Bb2 {[%clk 0:02:58]}  Bb7 {[%clk 0:03:00]} 5. Bd3 {[%clk 0:02:56]}  Nc6 {[%clk 0:02:56]} 6. a3 {[%clk 0:02:52]}  d5 {[%clk 0:02:50]} 7. exd5 {[%clk 0:02:51]}  exd5 {[%clk 0:02:50]} 8. O-O {[%clk 0:02:51]}  Nf6 {[%clk 0:02:48]} 9. Bb5 {[%clk 0:02:48]}  Be7 {[%clk 0:02:35]} 10. Ne5 {[%clk 0:02:45]}  Qc7 {[%clk 0:02:33]} 11. Re1 {[%clk 0:02:44]}  a6 {[%clk 0:02:23]} 12. Nxc6 {[%clk 0:02:39]}  Bxc6 {[%clk 0:02:24]} 13. Bxf6 {[%clk 0:02:38]}  gxf6 {[%clk 0:02:24]} 14. Bxc6+ {[%clk 0:02:37]}  Qxc6 {[%clk 0:02:25]} 15. Qf3 {[%clk 0:02:35]}  Rc8 {[%clk 0:02:03]} 16. Nc3 {[%clk 0:02:32]}  Rd8 {[%clk 0:01:57]} 17. Re2 {[%clk 0:02:26]}  Kf8 {[%clk 0:01:48]} 18. Rae1 {[%clk 0:02:23]}  Rd7 {[%clk 0:01:48]} 19. g3 {[%clk 0:02:17]}  h5 {[%clk 0:01:45]} 20. d3 {[%clk 0:02:06]}  h4 {[%clk 0:01:26]} 21. Nxd5 {[%clk 0:02:03]}  Qxd5 {[%clk 0:01:26]} 22. Qxd5 {[%clk 0:02:03]}  Rxd5 {[%clk 0:01:27]} 23. Rxe7 {[%clk 0:02:02]}  Kg7 {[%clk 0:01:25]} 24. Rb7 {[%clk 0:01:58]}  Rd6 {[%clk 0:01:24]} 25. Ree7 {[%clk 0:01:55]}  Rf8 {[%clk 0:01:21]} 26. Kg2 {[%clk 0:01:53]}  hxg3 {[%clk 0:01:19]} 27. hxg3 {[%clk 0:01:52]}  f5 {[%clk 0:01:20]} 28. Kf3 {[%clk 0:01:50]}  Kg6 {[%clk 0:01:19]} 29. a4 {[%clk 0:01:48]}  a5 {[%clk 0:01:17]} 30. Kf4 {[%clk 0:01:42]}  Rd4+ {[%clk 0:01:14]} 31. Kf3 {[%clk 0:01:37]}  Rd6 {[%clk 0:01:13]} 32. Ke3 {[%clk 0:01:29]}  Rf6 {[%clk 0:01:12]} 33. f3 {[%clk 0:01:27]}  Rh8 {[%clk 0:01:10]} 34. Kd2 {[%clk 0:01:14]}  Rh3 {[%clk 0:01:10]} 35. Re8 {[%clk 0:01:11]}  Kg7 {[%clk 0:01:03]} 36. Rbb8 {[%clk 0:01:10]}  Rh2+ {[%clk 0:00:49]} 37. Kc3 {[%clk 0:01:09]}  Rd6 {[%clk 0:00:43]} 38. Rg8+ {[%clk 0:01:05]}  Kf6 {[%clk 0:00:43]} 39. Rh8 {[%clk 0:01:04]}  Rxh8 {[%clk 0:00:41]} 40. Rxh8 {[%clk 0:01:03]}  Kg5 {[%clk 0:00:39]} 41. Rg8+ {[%clk 0:01:02]}  Kf6 {[%clk 0:00:39]} 42. Kc4 {[%clk 0:01:01]}  Rd4+ {[%clk 0:00:39]} 43. Kb5 {[%clk 0:01:01]}  Rb4+ {[%clk 0:00:39]} 44. Kc6 {[%clk 0:01:01]}  Ke5 {[%clk 0:00:40]} 45. Rd8 {[%clk 0:00:59]}  f4 {[%clk 0:00:38]} 46. g4 {[%clk 0:00:58]}  Kf6 {[%clk 0:00:37]} 47. Rb8 {[%clk 0:00:57]}  Kg5 {[%clk 0:00:36]} 48. Rxb6 {[%clk 0:00:55]}  Kh4 {[%clk 0:00:32]} 49. Kxc5 {[%clk 0:00:53]}  Rxb6 {[%clk 0:00:27]} 50. Kxb6 {[%clk 0:00:53]}  Kg3 {[%clk 0:00:28]} 51. b4 {[%clk 0:00:52]}  Kxf3 {[%clk 0:00:17]} 52. bxa5 {[%clk 0:00:52]}  Kxg4 {[%clk 0:00:18]} 53. a6 {[%clk 0:00:52]}  f3 {[%clk 0:00:19]} 54. a7 {[%clk 0:00:52]}  f2 {[%clk 0:00:20]} 55. a8=Q {[%clk 0:00:52]}  f1=Q {[%clk 0:00:19]} 56. Qg8+ {[%clk 0:00:51]}  Kh5 {[%clk 0:00:18]} 57. Qg3 {[%clk 0:00:48]}  f5 {[%clk 0:00:16]} 58. a5 {[%clk 0:00:46]}  f4 {[%clk 0:00:16]} 59. Qh2+ {[%clk 0:00:46]}  Kg4 {[%clk 0:00:14]} 60. a6 {[%clk 0:00:46]}  Qb1+ {[%clk 0:00:14]} 61. Kc5 {[%clk 0:00:44]}  Qa2 {[%clk 0:00:11]} 62. Qg2+ {[%clk 0:00:42]}  Kh4 {[%clk 0:00:11]} 63. Kb6 {[%clk 0:00:40]}  Qb2+ {[%clk 0:00:06]} 64. Kc5 {[%clk 0:00:40]}  Qa3+ {[%clk 0:00:05]} 65. Kb5 {[%clk 0:00:40]}  Qb2+ {[%clk 0:00:05]} 66. Kc4 {[%clk 0:00:39]}  Qa2+ {[%clk 0:00:05]} 67. Kb5 {[%clk 0:00:38]}  Qb2+ {[%clk 0:00:05]} 68. Ka5 {[%clk 0:00:38]}  Qa3+ {[%clk 0:00:04]} 69. Kb6 {[%clk 0:00:38]}  Qd6+ {[%clk 0:00:03]} 70. Kb5 {[%clk 0:00:38]}  Qd7+ {[%clk 0:00:01]} 71. Kb4 {[%clk 0:00:37]}  Qe7+ {[%clk 0:00:01]} 72. Kb5 {[%clk 0:00:34]}  Qe5+ {[%clk 0:00:01]} 73. Kc6 {[%clk 0:00:34]}  Qf6+ {[%clk 0:00:02]} 74. Kb7 {[%clk 0:00:33]}  Qf7+ {[%clk 0:00:02]} 75. Kb6 {[%clk 0:00:33]}  f3 {[%clk 0:00:03]} 76. Qf2+ {[%clk 0:00:33]}  Kg4 {[%clk 0:00:03]} 77. a7 {[%clk 0:00:33]}  Qf6+ {[%clk 0:00:03]} 78. Kb7 {[%clk 0:00:33]}  Qe7+ {[%clk 0:00:04]} 79. Ka6 {[%clk 0:00:33]}  Qa3+ {[%clk 0:00:04]} 80. Kb6 {[%clk 0:00:32]}  Qb4+ {[%clk 0:00:03]} 81. Kc7 {[%clk 0:00:32]}  Qe7+ {[%clk 0:00:03]} 82. Kc6 {[%clk 0:00:30]}  Qe6+ {[%clk 0:00:03]} 83. Kc5 {[%clk 0:00:30]}  Qe7+ {[%clk 0:00:03]} 84. Kc4 {[%clk 0:00:29]}  Qc7+ {[%clk 0:00:03]} 85. Kb3 {[%clk 0:00:29]}  Qb7+ {[%clk 0:00:02]} 86. Kc3 {[%clk 0:00:29]}  Qc7+ {[%clk 0:00:02]} 87. Kd2 {[%clk 0:00:29]}  Qa5+ {[%clk 0:00:03]} 88. Kc1 {[%clk 0:00:28]}  Qa1+ {[%clk 0:00:02]} 89. Kd2 {[%clk 0:00:28]}  Qa5+ {[%clk 0:00:03]} 90. Kc1 {[%clk 0:00:27]}  Qa1+ {[%clk 0:00:03]} 91. Kd2 {[%clk 0:00:27]}  Qa5+ {[%clk 0:00:04]} 1/2-1/2


[Site "https://www.chess.com"]

[Event "Titled Tuesday Blitz November 9 2021"]
[White "Jobava, Baadur"]
[Black "Visakh N R"]
[WhiteFideId "13601520"]
[BlackFideId "25012223"]
[WhiteElo "2731"]
[BlackElo "2454"]
[Result "1-0"]
[Round "07"]
[TimeControl "180+1"]
[Date "2021.11.09"]
[WhiteClock "0:01:12"]
[BlackClock "0:00:28"]

1. e4 {[%clk 0:03:00]}  c5 {[%clk 0:02:58]} 2. c3 {[%clk 0:02:58]}  d5 {[%clk 0:02:57]} 3. exd5 {[%clk 0:02:58]}  Qxd5 {[%clk 0:02:58]} 4. d4 {[%clk 0:02:59]}  Nf6 {[%clk 0:02:58]} 5. Nf3 {[%clk 0:02:58]}  Nc6 {[%clk 0:02:54]} 6. dxc5 {[%clk 0:02:58]}  Qxc5 {[%clk 0:02:51]} 7. Be3 {[%clk 0:02:57]}  Qa5 {[%clk 0:02:51]} 8. Na3 {[%clk 0:02:54]}  Bg4 {[%clk 0:02:51]} 9. h3 {[%clk 0:02:49]}  Bxf3 {[%clk 0:02:48]} 10. Qxf3 {[%clk 0:02:48]}  e5 {[%clk 0:02:44]} 11. Nc4 {[%clk 0:02:45]}  Qc7 {[%clk 0:02:43]} 12. O-O-O {[%clk 0:02:42]}  Be7 {[%clk 0:02:39]} 13. g4 {[%clk 0:02:40]}  Nd7 {[%clk 0:01:57]} 14. Kb1 {[%clk 0:02:35]}  Nc5 {[%clk 0:01:52]} 15. Rd5 {[%clk 0:02:26]}  Ne6 {[%clk 0:01:51]} 16. Bd3 {[%clk 0:02:23]}  Rd8 {[%clk 0:01:46]} 17. Rd1 {[%clk 0:02:21]}  Rxd5 {[%clk 0:01:43]} 18. Qxd5 {[%clk 0:02:22]}  O-O {[%clk 0:01:41]} 19. Bf5 {[%clk 0:02:13]}  Rd8 {[%clk 0:01:32]} 20. Qh1 {[%clk 0:02:13]}  Nf4 {[%clk 0:01:21]} 21. Rxd8+ {[%clk 0:02:04]}  Qxd8 {[%clk 0:01:21]} 22. Nxe5 {[%clk 0:02:02]}  Nxe5 {[%clk 0:01:17]} 23. Bxf4 {[%clk 0:02:02]}  Nc4 {[%clk 0:01:14]} 24. Bxh7+ {[%clk 0:01:48]}  Kxh7 {[%clk 0:01:14]} 25. Qe4+ {[%clk 0:01:48]}  Kg8 {[%clk 0:00:54]} 26. Qxc4 {[%clk 0:01:49]}  Qd1+ {[%clk 0:00:53]} 27. Bc1 {[%clk 0:01:48]}  Qf3 {[%clk 0:00:54]} 28. Qc8+ {[%clk 0:01:45]}  Bf8 {[%clk 0:00:54]} 29. a3 {[%clk 0:01:24]}  b5 {[%clk 0:00:50]} 30. Qf5 {[%clk 0:01:18]}  Qxh3 {[%clk 0:00:45]} 31. Qxb5 {[%clk 0:01:17]}  Qxg4 {[%clk 0:00:45]} 32. Be3 {[%clk 0:01:17]}  Qe4+ {[%clk 0:00:31]} 33. Ka2 {[%clk 0:01:16]}  Qe6+ {[%clk 0:00:29]} 34. c4 {[%clk 0:01:15]}  a6 {[%clk 0:00:29]} 35. Qd5 {[%clk 0:01:15]}  Qxd5 {[%clk 0:00:29]} 36. cxd5 {[%clk 0:01:15]}  Bd6 {[%clk 0:00:30]} 37. Kb3 {[%clk 0:01:14]}  g5 {[%clk 0:00:30]} 38. Bxg5 {[%clk 0:01:13]}  f5 {[%clk 0:00:28]} 39. Kc4 {[%clk 0:01:12]} 1-0


[Site "https://www.chess.com"]

[Event "Titled Tuesday Blitz November 9 2021"]
[White "Kamsky, Gata"]
[Black "Siva Mahadevan"]
[WhiteFideId "2000024"]
[BlackFideId "25043153"]
[WhiteElo "2645"]
[BlackElo "2203"]
[Result "0-1"]
[Round "07"]
[TimeControl "180+1"]
[Date "2021.11.09"]
[WhiteClock "0:01:19"]
[BlackClock "0:01:53"]

1. e4 {[%clk 0:03:00]}  c5 {[%clk 0:02:58]} 2. Nc3 {[%clk 0:02:59]}  Nc6 {[%clk 0:02:58]} 3. Bc4 {[%clk 0:02:58]}  Nf6 {[%clk 0:02:57]} 4. d3 {[%clk 0:02:58]}  e6 {[%clk 0:02:56]} 5. a3 {[%clk 0:02:55]}  d5 {[%clk 0:02:52]} 6. Ba2 {[%clk 0:02:54]}  dxe4 {[%clk 0:02:44]} 7. Nxe4 {[%clk 0:02:49]}  Nxe4 {[%clk 0:02:38]} 8. dxe4 {[%clk 0:02:49]}  Qxd1+ {[%clk 0:02:38]} 9. Kxd1 {[%clk 0:02:49]}  b6 {[%clk 0:02:39]} 10. Nf3 {[%clk 0:02:34]}  Ba6 {[%clk 0:02:33]} 11. Be3 {[%clk 0:02:22]}  O-O-O {[%clk 0:02:26]} 12. Kc1 {[%clk 0:02:19]}  h6 {[%clk 0:02:27]} 13. h4 {[%clk 0:02:18]}  Be7 {[%clk 0:02:25]} 14. Nd2 {[%clk 0:02:10]}  Ne5 {[%clk 0:02:20]} 15. f3 {[%clk 0:02:06]}  g5 {[%clk 0:02:16]} 16. h5 {[%clk 0:02:04]}  Rd7 {[%clk 0:02:12]} 17. Re1 {[%clk 0:01:46]}  Rhd8 {[%clk 0:02:09]} 18. a4 {[%clk 0:01:45]}  Kb7 {[%clk 0:02:06]} 19. a5 {[%clk 0:01:41]}  Bf6 {[%clk 0:02:06]} 20. axb6 {[%clk 0:01:34]}  axb6 {[%clk 0:02:07]} 21. Bb3 {[%clk 0:01:31]}  c4 {[%clk 0:02:02]} 22. Rxa6 {[%clk 0:01:30]}  Kxa6 {[%clk 0:01:59]} 23. Nxc4 {[%clk 0:01:30]}  Nxc4 {[%clk 0:01:53]} 24. Bxc4+ {[%clk 0:01:30]}  b5 {[%clk 0:01:54]} 25. Bd3 {[%clk 0:01:27]}  Bd4 {[%clk 0:01:53]} 26. Bd2 {[%clk 0:01:26]}  Kb6 {[%clk 0:01:52]} 27. Bf1 {[%clk 0:01:20]}  Bxb2+ {[%clk 0:01:52]} 28. Kxb2 {[%clk 0:01:19]}  Rxd2 {[%clk 0:01:53]} 0-1


[Site "https://www.chess.com"]

[Event "Titled Tuesday Blitz November 9 2021"]
[White "Kovalenko, Igor"]
[Black "Cunjalo, Faris"]
[WhiteFideId "14117908"]
[BlackFideId "14410710"]
[WhiteElo "2629"]
[BlackElo "2263"]
[Result "0-1"]
[Round "07"]
[TimeControl "180+1"]
[Date "2021.11.09"]
[WhiteClock "0:00:10"]
[BlackClock "0:00:06"]

1. d4 {[%clk 0:03:00]}  Nf6 {[%clk 0:03:00]} 2. Nf3 {[%clk 0:03:00]}  e6 {[%clk 0:03:00]} 3. e3 {[%clk 0:03:01]}  d5 {[%clk 0:02:57]} 4. Bd3 {[%clk 0:03:01]}  Bd6 {[%clk 0:02:49]} 5. O-O {[%clk 0:03:02]}  O-O {[%clk 0:02:49]} 6. b3 {[%clk 0:03:01]}  a5 {[%clk 0:02:47]} 7. c4 {[%clk 0:03:01]}  b6 {[%clk 0:02:46]} 8. Nc3 {[%clk 0:03:00]}  Bb7 {[%clk 0:02:46]} 9. Bb2 {[%clk 0:03:00]}  Nbd7 {[%clk 0:02:45]} 10. Rc1 {[%clk 0:02:54]}  Ne4 {[%clk 0:02:34]} 11. Nb5 {[%clk 0:02:52]}  Rc8 {[%clk 0:02:26]} 12. cxd5 {[%clk 0:02:37]}  exd5 {[%clk 0:02:25]} 13. Nxd6 {[%clk 0:02:34]}  Nxd6 {[%clk 0:02:24]} 14. Ba3 {[%clk 0:02:30]}  Qf6 {[%clk 0:02:17]} 15. Qe2 {[%clk 0:02:16]}  Rfe8 {[%clk 0:02:16]} 16. Rc2 {[%clk 0:02:16]}  Ne4 {[%clk 0:02:13]} 17. Rfc1 {[%clk 0:02:16]}  c6 {[%clk 0:02:13]} 18. h3 {[%clk 0:02:05]}  h6 {[%clk 0:02:09]} 19. Nd2 {[%clk 0:02:03]}  Nd6 {[%clk 0:01:57]} 20. Qf3 {[%clk 0:01:49]}  Qxf3 {[%clk 0:01:40]} 21. gxf3 {[%clk 0:01:32]}  Re6 {[%clk 0:01:37]} 22. Nf1 {[%clk 0:01:25]}  g6 {[%clk 0:01:35]} 23. Ng3 {[%clk 0:01:25]}  Ne8 {[%clk 0:01:29]} 24. h4 {[%clk 0:01:25]}  Ng7 {[%clk 0:01:28]} 25. f4 {[%clk 0:01:22]}  f5 {[%clk 0:01:09]} 26. h5 {[%clk 0:01:20]}  Nf6 {[%clk 0:01:09]} 27. hxg6 {[%clk 0:01:19]}  Ne4 {[%clk 0:01:10]} 28. Bxe4 {[%clk 0:01:15]}  dxe4 {[%clk 0:01:10]} 29. d5 {[%clk 0:01:14]}  Rxg6 {[%clk 0:01:10]} 30. Bb2 {[%clk 0:01:05]}  c5 {[%clk 0:01:08]} 31. Kh2 {[%clk 0:01:04]}  Rf8 {[%clk 0:01:07]} 32. Rd2 {[%clk 0:01:02]}  Bc8 {[%clk 0:01:06]} 33. d6 {[%clk 0:01:00]}  Bd7 {[%clk 0:01:05]} 34. Rg1 {[%clk 0:00:56]}  Kh7 {[%clk 0:01:02]} 35. Be5 {[%clk 0:00:49]}  Ne8 {[%clk 0:00:54]} 36. Kg2 {[%clk 0:00:33]}  Nf6 {[%clk 0:00:52]} 37. Bxf6 {[%clk 0:00:19]}  Rfxf6 {[%clk 0:00:53]} 38. Rgd1 {[%clk 0:00:19]}  Kg8 {[%clk 0:00:47]} 39. Rd5 {[%clk 0:00:19]}  Kf7 {[%clk 0:00:44]} 40. Kh3 {[%clk 0:00:20]}  Ke8 {[%clk 0:00:40]} 41. Nh5 {[%clk 0:00:20]}  Rf7 {[%clk 0:00:32]} 42. Re5+ {[%clk 0:00:20]}  Kd8 {[%clk 0:00:33]} 43. Ng3 {[%clk 0:00:19]}  Be6 {[%clk 0:00:30]} 44. Kg2 {[%clk 0:00:17]}  Kd7 {[%clk 0:00:30]} 45. Kf1 {[%clk 0:00:18]}  Rg8 {[%clk 0:00:16]} 46. Ke2 {[%clk 0:00:18]}  Rh8 {[%clk 0:00:17]} 47. Kd2 {[%clk 0:00:17]}  h5 {[%clk 0:00:17]} 48. Rh1 {[%clk 0:00:15]}  h4 {[%clk 0:00:18]} 49. Ne2 {[%clk 0:00:13]}  Kxd6 {[%clk 0:00:17]} 50. Ng1 {[%clk 0:00:13]}  Re7 {[%clk 0:00:08]} 51. Nh3 {[%clk 0:00:13]}  Bd7 {[%clk 0:00:09]} 52. Ng5 {[%clk 0:00:13]}  Rxe5 {[%clk 0:00:07]} 53. fxe5+ {[%clk 0:00:14]}  Ke7 {[%clk 0:00:08]} 54. Ke2 {[%clk 0:00:12]}  Bb5+ {[%clk 0:00:07]} 55. Kd2 {[%clk 0:00:12]}  Rg8 {[%clk 0:00:06]} 56. Nh7 {[%clk 0:00:11]}  Rg2 {[%clk 0:00:04]} 57. Ke1 {[%clk 0:00:11]}  Ke6 {[%clk 0:00:05]} 58. Rxh4 {[%clk 0:00:11]}  Kxe5 {[%clk 0:00:05]} 59. Rh6 {[%clk 0:00:10]}  Rg1+ {[%clk 0:00:06]} 60. Kd2 {[%clk 0:00:10]}  Rf1 {[%clk 0:00:07]} 61. Rxb6 {[%clk 0:00:10]}  Rxf2+ {[%clk 0:00:07]} 62. Ke1 {[%clk 0:00:10]}  Rf1+ {[%clk 0:00:04]} 63. Kd2 {[%clk 0:00:11]}  Bd3 {[%clk 0:00:05]} 64. Ng5 {[%clk 0:00:10]}  Rf2+ {[%clk 0:00:05]} 65. Kc3 {[%clk 0:00:10]}  Rc2# {[%clk 0:00:06]} 0-1


[Site "https://www.chess.com"]

[Event "Titled Tuesday Blitz November 9 2021"]
[White "Makhnev, Denis"]
[Black "Vasquez Schroeder, Rodrigo"]
[WhiteFideId "13707647"]
[BlackFideId "3400042"]
[WhiteElo "2537"]
[BlackElo "2568"]
[Result "1-0"]
[Round "07"]
[TimeControl "180+1"]
[Date "2021.11.09"]
[WhiteClock "0:00:09"]
[BlackClock "0:00:05"]

1. e4 {[%clk 0:03:00]}  e5 {[%clk 0:02:55]} 2. Nf3 {[%clk 0:03:01]}  Nc6 {[%clk 0:02:55]} 3. Bc4 {[%clk 0:03:01]}  Nf6 {[%clk 0:02:54]} 4. d3 {[%clk 0:03:01]}  Be7 {[%clk 0:02:52]} 5. O-O {[%clk 0:03:00]}  O-O {[%clk 0:02:52]} 6. Re1 {[%clk 0:02:55]}  d6 {[%clk 0:02:52]} 7. a4 {[%clk 0:02:56]}  Kh8 {[%clk 0:02:50]} 8. c3 {[%clk 0:02:51]}  Ng8 {[%clk 0:02:48]} 9. d4 {[%clk 0:02:52]}  f5 {[%clk 0:02:45]} 10. exf5 {[%clk 0:02:35]}  Bxf5 {[%clk 0:02:39]} 11. dxe5 {[%clk 0:02:22]}  Bg4 {[%clk 0:02:38]} 12. Be2 {[%clk 0:01:58]}  dxe5 {[%clk 0:02:29]} 13. h3 {[%clk 0:01:52]}  Bf5 {[%clk 0:02:25]} 14. Be3 {[%clk 0:01:49]}  Nf6 {[%clk 0:02:21]} 15. Qb3 {[%clk 0:01:26]}  Qc8 {[%clk 0:02:21]} 16. Nbd2 {[%clk 0:01:21]}  Be6 {[%clk 0:02:08]} 17. Qc2 {[%clk 0:01:19]}  Nd5 {[%clk 0:01:50]} 18. Bd3 {[%clk 0:01:14]}  h6 {[%clk 0:01:41]} 19. Bg6 {[%clk 0:00:51]}  Rf6 {[%clk 0:01:35]} 20. Be4 {[%clk 0:00:39]}  Bd6 {[%clk 0:01:12]} 21. Nh4 {[%clk 0:00:37]}  Nde7 {[%clk 0:01:09]} 22. Rad1 {[%clk 0:00:28]}  Qg8 {[%clk 0:01:08]} 23. Nf1 {[%clk 0:00:27]}  Bb3 {[%clk 0:01:08]} 24. Qe2 {[%clk 0:00:24]}  Bxd1 {[%clk 0:01:08]} 25. Rxd1 {[%clk 0:00:24]}  Raf8 {[%clk 0:01:06]} 26. Bb1 {[%clk 0:00:24]}  g5 {[%clk 0:00:57]} 27. Nf3 {[%clk 0:00:24]}  Nf5 {[%clk 0:00:49]} 28. Bc1 {[%clk 0:00:16]}  Qg7 {[%clk 0:00:43]} 29. N1h2 {[%clk 0:00:16]}  Bc5 {[%clk 0:00:32]} 30. Ng4 {[%clk 0:00:16]}  Rd6 {[%clk 0:00:29]} 31. b4 {[%clk 0:00:15]}  Rxd1+ {[%clk 0:00:29]} 32. Qxd1 {[%clk 0:00:16]}  Bd6 {[%clk 0:00:29]} 33. Be4 {[%clk 0:00:15]}  a6 {[%clk 0:00:28]} 34. a5 {[%clk 0:00:13]}  Nfe7 {[%clk 0:00:26]} 35. Qc2 {[%clk 0:00:13]}  Nd8 {[%clk 0:00:22]} 36. h4 {[%clk 0:00:13]}  h5 {[%clk 0:00:19]} 37. Ne3 {[%clk 0:00:09]}  gxh4 {[%clk 0:00:20]} 38. Nxh4 {[%clk 0:00:09]}  Ne6 {[%clk 0:00:20]} 39. Nef5 {[%clk 0:00:09]}  Nxf5 {[%clk 0:00:20]} 40. Nxf5 {[%clk 0:00:10]}  Qf6 {[%clk 0:00:19]} 41. Qe2 {[%clk 0:00:08]}  Qf7 {[%clk 0:00:16]} 42. Nh6 {[%clk 0:00:08]}  Qe8 {[%clk 0:00:15]} 43. Nf5 {[%clk 0:00:06]}  Nf4 {[%clk 0:00:15]} 44. Bxf4 {[%clk 0:00:05]}  exf4 {[%clk 0:00:15]} 45. Qf3 {[%clk 0:00:06]}  Qf7 {[%clk 0:00:13]} 46. Nh4 {[%clk 0:00:06]}  Rg8 {[%clk 0:00:13]} 47. Bd5 {[%clk 0:00:07]}  Qe8 {[%clk 0:00:08]} 48. Bxg8 {[%clk 0:00:06]}  Kxg8 {[%clk 0:00:09]} 49. Qd5+ {[%clk 0:00:06]}  Kf8 {[%clk 0:00:08]} 50. Nf3 {[%clk 0:00:06]}  Kg7 {[%clk 0:00:07]} 51. Qxb7 {[%clk 0:00:06]}  Qe2 {[%clk 0:00:06]} 52. Qd5 {[%clk 0:00:07]}  Kg6 {[%clk 0:00:03]} 53. Qg5+ {[%clk 0:00:07]}  Kf7 {[%clk 0:00:04]} 54. Qxh5+ {[%clk 0:00:08]}  Ke7 {[%clk 0:00:04]} 55. Qh7+ {[%clk 0:00:08]}  Kd8 {[%clk 0:00:04]} 56. Qg8+ {[%clk 0:00:09]}  Kd7 {[%clk 0:00:05]} 57. Qg4+ {[%clk 0:00:09]}  Kc6 {[%clk 0:00:05]} 58. Nd4+ {[%clk 0:00:09]} 1-0


[Site "https://www.chess.com"]

[Event "Titled Tuesday Blitz November 9 2021"]
[White "Maly, Alexey"]
[Black "Obregon, Andres Carlos"]
[WhiteFideId "14103184"]
[BlackFideId "111724"]
[WhiteElo "2294"]
[BlackElo "2572"]
[Result "0-1"]
[Round "07"]
[TimeControl "180+1"]
[Date "2021.11.09"]
[WhiteClock "0:00:49"]
[BlackClock "0:01:05"]

1. d4 {[%clk 0:03:00]}  d5 {[%clk 0:02:58]} 2. c4 {[%clk 0:03:00]}  dxc4 {[%clk 0:02:55]} 3. e3 {[%clk 0:03:01]}  Nf6 {[%clk 0:02:52]} 4. Bxc4 {[%clk 0:03:01]}  e6 {[%clk 0:02:49]} 5. Nf3 {[%clk 0:03:01]}  c5 {[%clk 0:02:47]} 6. O-O {[%clk 0:03:01]}  a6 {[%clk 0:02:44]} 7. b3 {[%clk 0:03:01]}  cxd4 {[%clk 0:02:38]} 8. Nxd4 {[%clk 0:03:01]}  Bd6 {[%clk 0:02:34]} 9. Bb2 {[%clk 0:02:58]}  O-O {[%clk 0:02:32]} 10. Nd2 {[%clk 0:02:58]}  e5 {[%clk 0:02:29]} 11. N4f3 {[%clk 0:02:56]}  Nc6 {[%clk 0:02:28]} 12. h3 {[%clk 0:02:55]}  b5 {[%clk 0:02:20]} 13. Be2 {[%clk 0:02:54]}  Bb7 {[%clk 0:02:19]} 14. a4 {[%clk 0:02:53]}  Qb6 {[%clk 0:02:14]} 15. axb5 {[%clk 0:02:51]}  axb5 {[%clk 0:02:14]} 16. Rxa8 {[%clk 0:02:51]}  Rxa8 {[%clk 0:02:13]} 17. Qb1 {[%clk 0:02:50]}  Re8 {[%clk 0:02:07]} 18. Rd1 {[%clk 0:02:47]}  Nb4 {[%clk 0:02:05]} 19. Ng5 {[%clk 0:02:41]}  h6 {[%clk 0:02:02]} 20. Nge4 {[%clk 0:02:38]}  Bf8 {[%clk 0:02:01]} 21. Nxf6+ {[%clk 0:02:30]}  Qxf6 {[%clk 0:02:01]} 22. Bf3 {[%clk 0:02:22]}  Bc8 {[%clk 0:02:02]} 23. Ne4 {[%clk 0:02:20]}  Qb6 {[%clk 0:02:01]} 24. Ng3 {[%clk 0:02:13]}  g6 {[%clk 0:01:59]} 25. Qe4 {[%clk 0:02:08]}  f5 {[%clk 0:01:54]} 26. Qb1 {[%clk 0:01:54]}  e4 {[%clk 0:01:52]} 27. Be2 {[%clk 0:01:54]}  Be6 {[%clk 0:01:48]} 28. Bd4 {[%clk 0:01:51]}  Qb7 {[%clk 0:01:49]} 29. Rc1 {[%clk 0:01:47]}  Nc6 {[%clk 0:01:46]} 30. Ba1 {[%clk 0:01:46]}  Na5 {[%clk 0:01:45]} 31. Be5 {[%clk 0:01:38]}  Nxb3 {[%clk 0:01:43]} 32. Rc7 {[%clk 0:01:36]}  Qd5 {[%clk 0:01:39]} 33. Qb2 {[%clk 0:01:29]}  Bf7 {[%clk 0:01:29]} 34. Bf1 {[%clk 0:01:16]}  Qxe5 {[%clk 0:01:28]} 35. Qc2 {[%clk 0:01:14]}  Nc5 {[%clk 0:01:20]} 36. Bxb5 {[%clk 0:01:13]}  Qxc7 {[%clk 0:01:19]} 37. Bxe8 {[%clk 0:01:12]}  Bxe8 {[%clk 0:01:20]} 38. Ne2 {[%clk 0:01:12]}  Ne6 {[%clk 0:01:19]} 39. Qa2 {[%clk 0:01:10]}  Bf7 {[%clk 0:01:19]} 40. Qa6 {[%clk 0:01:09]}  Qe5 {[%clk 0:01:16]} 41. h4 {[%clk 0:01:08]}  Bd6 {[%clk 0:01:15]} 42. g3 {[%clk 0:01:08]}  g5 {[%clk 0:01:15]} 43. hxg5 {[%clk 0:01:08]}  hxg5 {[%clk 0:01:16]} 44. Kg2 {[%clk 0:01:08]}  Bh5 {[%clk 0:01:16]} 45. Qc8+ {[%clk 0:01:07]}  Bf8 {[%clk 0:01:15]} 46. Nc3 {[%clk 0:01:06]}  Bf3+ {[%clk 0:01:15]} 47. Kg1 {[%clk 0:01:06]}  Kf7 {[%clk 0:01:13]} 48. Qd7+ {[%clk 0:01:05]}  Kg6 {[%clk 0:01:11]} 49. Qe8+ {[%clk 0:01:04]}  Kg7 {[%clk 0:01:11]} 50. Qd7+ {[%clk 0:01:04]}  Kg8 {[%clk 0:01:11]} 51. Qe8 {[%clk 0:01:01]}  f4 {[%clk 0:01:10]} 52. exf4 {[%clk 0:01:00]}  gxf4 {[%clk 0:01:10]} 53. Qg6+ {[%clk 0:00:58]}  Ng7 {[%clk 0:01:09]} 54. Qc6 {[%clk 0:00:51]}  fxg3 {[%clk 0:01:07]} 55. Nd5 {[%clk 0:00:51]}  Qa1+ {[%clk 0:01:05]} 56. Qc1 {[%clk 0:00:49]}  Qxc1# {[%clk 0:01:05]} 0-1


[Site "https://www.chess.com"]